Workbook

Sheet Cover
B3: Excel + VBA
B4: für Controller
B7: Kapitel | C7: 5
B8: Thema | C8: Datenmodelle
B10: Inhalt | C10: Lagerverwaltung
C11: Erstellung eines Datenmodells
B18: Version | C18: 1.0
B19: Autor | C19: Harald Nahrstedt
B20: Datum | C20: 2025-04-25
B23: Springer Verlag

Sheet Kunden
A1: ID | B1: KNr | C1: Kunde
A2: 1 | B2: 1 | C2: Anderer & Sohn
A3: 2 | B3: 2 | C3: Arnsberg GmbH
A4: 3 | B4: 3 | C4: Asshoff KG
A5: 4 | B5: 4 | C5: Assmann GmbH
A6: 5 | B6: 5 | C6: Bahr oHG
A7: 6 | B7: 6 | C7: Bartmann KG
A8: 7 | B8: 7 | C8: Brand & Partner
A9: 8 | B9: 8 | C9: Brommel GmbH
A10: 9 | B10: 9 | C10: Conen oHG & Co
A11: 10 | B11: 10 | C11: Dober & Sohn KG
A12: 11 | B12: 11 | C12: Dunkel KG
A13: 12 | B13: 12 | C13: Ehrmann GmbH
A14: 13 | B14: 13 | C14: Enkel & Nachfolger
A15: 14 | B15: 14 | C15: Fahrer GmbH
A16: 15 | B16: 15 | C16: Fischer GmbH
A17: 16 | B17: 16 | C17: Freimann KG
A18: 17 | B18: 17 | C18: Fricke & Söhne
A19: 18 | B19: 18 | C19: Friedrichs GmbH
A20: 19 | B20: 19 | C20: Hinz & Kunz KG
A21: 20 | B21: 20 | C21: Hobel GmbH
A22: 21 | B22: 21 | C22: Hofer oHG
A23: 22 | B23: 22 | C23: Jung & Alt KG
A24: 23 | B24: 23 | C24: Kortmann & Sohn
A25: 24 | B25: 24 | C25: Kramer GmbH
A26: 25 | B26: 25 | C26: Kuhn & Lanz
A27: 26 | B27: 26 | C27: Lammer GmbH
A28: 27 | B28: 27 | C28: Lange & Partner
A29: 28 | B29: 28 | C29: Menge KG
A30: 29 | B30: 29 | C30: Münch GmbH
A31: 30 | B31: 30 | C31: Mütz GmbH
A32: 31 | B32: 31 | C32: Neibel GmbH & Co.
A33: 32 | B33: 32 | C33: Nobel GmbH
A34: 33 | B34: 33 | C34: Oppermann GmbH
A35: 34 | B35: 34 | C35: Philipps GmbH
A36: 35 | B36: 35 | C36: Pieper & Co.
A37: 36 | B37: 36 | C37: Pollen GmbH
A38: 37 | B38: 37 | C38: Raabe & Partner
A39: 38 | B39: 38 | C39: Ross oHG
A40: 39 | B40: 39 | C40: Rottmann GmbH
A41: 40 | B41: 40 | C41: Rühring GmbH
A42: 41 | B42: 41 | C42: Rüther & Hübner
A43: 42 | B43: 42 | C43: Schnieder KG
A44: 43 | B44: 43 | C44: Schulte & Sohn
A45: 44 | B45: 44 | C45: Tamm KG
A46: 45 | B46: 45 | C46: Uhlmann GmbH
A47: 46 | B47: 46 | C47: Vogel & Co.
A48: 47 | B48: 47 | C48: Zimmermann oHG

Sheet Produkte
A1: ID | B1: PNr | C1: Produkt | D1: Preis
A2: 1 | B2: 1 | C2: Dichtung | D2: 10.73
A3: 2 | B3: 2 | C3: Druckfeder | D3: 12.03
A4: 3 | B4: 3 | C4: Gelenkbolzen | D4: 7.36
A5: 4 | B5: 4 | C5: Gleitlager | D5: 5.18
A6: 5 | B6: 5 | C6: Kegelrad | D6: 10.04
A7: 6 | B7: 6 | C7: Kettenglied | D7: 2.99
A8: 7 | B8: 7 | C8: Kupplung | D8: 11.51
A9: 8 | B9: 8 | C9: Metallschraube | D9: 5.58
A10: 9 | B10: 9 | C10: Niete | D10: 1.53
A11: 10 | B11: 10 | C11: Stirnrad | D11: 10.39
A12: 11 | B12: 11 | C12: Tellerfeder | D12: 4.22
A13: 12 | B13: 12 | C13: Vierkant | D13: 0.54
A14: 13 | B14: 13 | C14: Wälzlager | D14: 7.33
A15: 14 | B15: 14 | C15: Zahnrad | D15: 1.09
A16: 15 | B16: 15 | C16: Zugfeder | D16: 3.25

Sheet Regionen
A1: ID | B1: RNr | C1: Region
A2: 1 | B2: 1 | C2: Ost
A3: 2 | B3: 2 | C3: Süd
A4: 3 | B4: 3 | C4: West
A5: 4 | B5: 4 | C5: Nord

Sheet Verkäufer
A1: ID | B1: VNr | C1: Name
A2: 1 | B2: 1 | C2: Altmann
A3: 2 | B3: 2 | C3: Amtmann
A4: 3 | B4: 3 | C4: Bauer
A5: 4 | B5: 4 | C5: Becker
A6: 5 | B6: 5 | C6: Brenner
A7: 6 | B7: 6 | C7: Filzer
A8: 7 | B8: 7 | C8: Gärtner
A9: 8 | B9: 8 | C9: Hauer
A10: 9 | B10: 9 | C10: Holzer
A11: 10 | B11: 10 | C11: Holzmann
A12: 11 | B12: 11 | C12: Lehmann
A13: 12 | B13: 12 | C13: Lehrer
A14: 13 | B14: 13 | C14: Müller
A15: 14 | B15: 14 | C15: Näher
A16: 15 | B16: 15 | C16: Renner
A17: 16 | B17: 16 | C17: Sandmann
A18: 17 | B18: 17 | C18: Uhl
A19: 18 | B19: 18 | C19: Wanda
A20: 19 | B20: 19 | C20: Weber
A21: 20 | B21: 20 | C21: Weinreich

Sheet Verkaufsliste
A1: ID | B1: Region | C1: Verkäufer | D1: Kunde | E1: Produkt | F1: Anzahl
A2: 10 | B2: 3 | C2: 9 | D2: 18 | E2: 6 | F2: 88
A3: 11 | B3: 3 | C3: 9 | D3: 18 | E3: 6 | F3: 25
A4: 12 | B4: 3 | C4: 9 | D4: 18 | E4: 6 | F4: 17
A5: 13 | B5: 3 | C5: 9 | D5: 13 | E5: 8 | F5: 14
A6: 14 | B6: 3 | C6: 9 | D6: 13 | E6: 8 | F6: 82
A7: 15 | B7: 3 | C7: 9 | D7: 13 | E7: 8 | F7: 15
A8: 16 | B8: 3 | C8: 9 | D8: 27 | E8: 14 | F8: 72
A9: 17 | B9: 3 | C9: 9 | D9: 27 | E9: 14 | F9: 93
A10: 18 | B10: 3 | C10: 9 | D10: 27 | E10: 14 | F10: 29
A11: 27 | B11: 3 | C11: 3 | D11: 31 | E11: 4 | F11: 89
A12: 28 | B12: 3 | C12: 3 | D12: 31 | E12: 4 | F12: 11
A13: 29 | B13: 3 | C13: 3 | D13: 31 | E13: 4 | F13: 19
A14: 30 | B14: 3 | C14: 15 | D14: 45 | E14: 13 | F14: 100
A15: 31 | B15: 3 | C15: 15 | D15: 45 | E15: 13 | F15: 56
A16: 33 | B16: 3 | C16: 19 | D16: 36 | E16: 4 | F16: 70
A17: 34 | B17: 3 | C17: 19 | D17: 36 | E17: 4 | F17: 13
A18: 36 | B18: 3 | C18: 9 | D18: 1 | E18: 2 | F18: 94
A19: 54 | B19: 3 | C19: 14 | D19: 8 | E19: 4 | F19: 53
A20: 56 | B20: 3 | C20: 9 | D20: 31 | E20: 10 | F20: 83
A21: 72 | B21: 3 | C21: 19 | D21: 45 | E21: 10 | F21: 28
A22: 73 | B22: 3 | C22: 19 | D22: 45 | E22: 10 | F22: 95
A23: 75 | B23: 3 | C23: 19 | D23: 40 | E23: 8 | F23: 82
A24: 83 | B24: 3 | C24: 14 | D24: 22 | E24: 14 | F24: 96
A25: 84 | B25: 3 | C25: 14 | D25: 22 | E25: 14 | F25: 45
A26: 91 | B26: 3 | C26: 3 | D26: 47 | E26: 1 | F26: 88
A27: 92 | B27: 3 | C27: 3 | D27: 47 | E27: 1 | F27: 62
A28: 95 | B28: 3 | C28: 14 | D28: 2 | E28: 8 | F28: 53
A29: 96 | B29: 3 | C29: 14 | D29: 2 | E29: 8 | F29: 30
A30: 97 | B30: 3 | C30: 14 | D30: 2 | E30: 8 | F30: 23
A31: 98 | B31: 3 | C31: 19 | D31: 21 | E31: 13 | F31: 61
A32: 99 | B32: 3 | C32: 3 | D32: 14 | E32: 10 | F32: 89
A33: 100 | B33: 3 | C33: 3 | D33: 14 | E33: 10 | F33: 100
A34: 101 | B34: 3 | C34: 3 | D34: 22 | E34: 3 | F34: 77
A35: 102 | B35: 3 | C35: 3 | D35: 22 | E35: 3 | F35: 25
A36: 103 | B36: 3 | C36: 3 | D36: 22 | E36: 3 | F36: 22
A37: 104 | B37: 3 | C37: 3 | D37: 22 | E37: 3 | F37: 94
A38: 105 | B38: 3 | C38: 14 | D38: 42 | E38: 9 | F38: 17
A39: 118 | B39: 3 | C39: 9 | D39: 32 | E39: 3 | F39: 55
A40: 119 | B40: 3 | C40: 9 | D40: 32 | E40: 3 | F40: 35
A41: 124 | B41: 3 | C41: 15 | D41: 10 | E41: 7 | F41: 65
A42: 129 | B42: 3 | C42: 19 | D42: 11 | E42: 2 | F42: 43
A43: 130 | B43: 3 | C43: 19 | D43: 11 | E43: 2 | F43: 90
A44: 136 | B44: 3 | C44: 14 | D44: 6 | E44: 12 | F44: 12
A45: 137 | B45: 3 | C45: 19 | D45: 4 | E45: 8 | F45: 32
A46: 138 | B46: 3 | C46: 19 | D46: 4 | E46: 8 | F46: 65
A47: 139 | B47: 3 | C47: 19 | D47: 4 | E47: 8 | F47: 53
A48: 144 | B48: 3 | C48: 14 | D48: 16 | E48: 8 | F48: 89
A49: 145 | B49: 3 | C49: 14 | D49: 16 | E49: 8 | F49: 71
A50: 172 | B50: 3 | C50: 3 | D50: 38 | E50: 15 | F50: 97
A51: 173 | B51: 3 | C51: 3 | D51: 38 | E51: 15 | F51: 44
A52: 174 | B52: 3 | C52: 14 | D52: 28 | E52: 14 | F52: 64
A53: 180 | B53: 3 | C53: 19 | D53: 17 | E53: 11 | F53: 82
A54: 181 | B54: 3 | C54: 19 | D54: 17 | E54: 11 | F54: 17
A55: 182 | B55: 3 | C55: 14 | D55: 12 | E55: 2 | F55: 59
A56: 188 | B56: 3 | C56: 9 | D56: 24 | E56: 3 | F56: 65
A57: 189 | B57: 3 | C57: 9 | D57: 24 | E57: 3 | F57: 75
A58: 195 | B58: 3 | C58: 15 | D58: 23 | E58: 5 | F58: 48
A59: 196 | B59: 3 | C59: 15 | D59: 23 | E59: 5 | F59: 26
A60: 197 | B60: 3 | C60: 3 | D60: 17 | E60: 1 | F60: 42
A61: 198 | B61: 3 | C61: 3 | D61: 17 | E61: 1 | F61: 30
A62: 206 | B62: 3 | C62: 9 | D62: 13 | E62: 8 | F62: 15
A63: 217 | B63: 3 | C63: 15 | D63: 45 | E63: 13 | F63: 93
A64: 219 | B64: 3 | C64: 19 | D64: 36 | E64: 4 | F64: 55
A65: 222 | B65: 3 | C65: 9 | D65: 1 | E65: 2 | F65: 74
A66: 237 | B66: 3 | C66: 14 | D66: 8 | E66: 4 | F66: 43
A67: 238 | B67: 3 | C67: 14 | D67: 8 | E67: 4 | F67: 69
A68: 239 | B68: 3 | C68: 14 | D68: 8 | E68: 4 | F68: 69
A69: 242 | B69: 3 | C69: 9 | D69: 31 | E69: 10 | F69: 36
A70: 243 | B70: 3 | C70: 9 | D70: 31 | E70: 10 | F70: 58
A71: 244 | B71: 3 | C71: 9 | D71: 31 | E71: 10 | F71: 69
A72: 257 | B72: 3 | C72: 19 | D72: 40 | E72: 12 | F72: 38
A73: 258 | B73: 3 | C73: 19 | D73: 40 | E73: 12 | F73: 42
A74: 264 | B74: 3 | C74: 14 | D74: 22 | E74: 14 | F74: 21
A75: 265 | B75: 3 | C75: 14 | D75: 22 | E75: 14 | F75: 91
A76: 271 | B76: 3 | C76: 3 | D76: 47 | E76: 1 | F76: 67
A77: 272 | B77: 3 | C77: 3 | D77: 47 | E77: 1 | F77: 63
A78: 273 | B78: 3 | C78: 3 | D78: 47 | E78: 1 | F78: 65
A79: 275 | B79: 3 | C79: 14 | D79: 2 | E79: 8 | F79: 91
A80: 276 | B80: 3 | C80: 14 | D80: 2 | E80: 8 | F80: 40
A81: 277 | B81: 3 | C81: 19 | D81: 21 | E81: 13 | F81: 43
A82: 278 | B82: 3 | C82: 19 | D82: 21 | E82: 13 | F82: 55
A83: 279 | B83: 3 | C83: 3 | D83: 14 | E83: 10 | F83: 100
A84: 280 | B84: 3 | C84: 3 | D84: 22 | E84: 3 | F84: 26
A85: 281 | B85: 3 | C85: 14 | D85: 42 | E85: 9 | F85: 68
A86: 295 | B86: 3 | C86: 15 | D86: 10 | E86: 7 | F86: 99
A87: 298 | B87: 3 | C87: 19 | D87: 11 | E87: 2 | F87: 44
A88: 299 | B88: 3 | C88: 19 | D88: 11 | E88: 2 | F88: 41
A89: 315 | B89: 3 | C89: 14 | D89: 6 | E89: 12 | F89: 61
A90: 316 | B90: 3 | C90: 14 | D90: 6 | E90: 12 | F90: 66
A91: 317 | B91: 3 | C91: 14 | D91: 6 | E91: 12 | F91: 28
A92: 318 | B92: 3 | C92: 14 | D92: 6 | E92: 12 | F92: 15
A93: 319 | B93: 3 | C93: 14 | D93: 16 | E93: 8 | F93: 70
A94: 338 | B94: 3 | C94: 3 | D94: 38 | E94: 15 | F94: 92
A95: 339 | B95: 3 | C95: 3 | D95: 38 | E95: 15 | F95: 12
A96: 340 | B96: 3 | C96: 3 | D96: 38 | E96: 15 | F96: 35
A97: 341 | B97: 3 | C97: 14 | D97: 28 | E97: 14 | F97: 89
A98: 342 | B98: 3 | C98: 14 | D98: 28 | E98: 14 | F98: 48
A99: 345 | B99: 3 | C99: 19 | D99: 17 | E99: 11 | F99: 79
A100: 346 | B100: 3 | C100: 19 | D100: 17 | E100: 11 | F100: 67
A101: 347 | B101: 3 | C101: 14 | D101: 12 | E101: 2 | F101: 97
A102: 348 | B102: 3 | C102: 14 | D102: 12 | E102: 2 | F102: 54
A103: 349 | B103: 3 | C103: 9 | D103: 24 | E103: 3 | F103: 25
A104: 350 | B104: 3 | C104: 9 | D104: 24 | E104: 3 | F104: 56
A105: 351 | B105: 3 | C105: 9 | D105: 24 | E105: 3 | F105: 57
A106: 352 | B106: 3 | C106: 9 | D106: 24 | E106: 3 | F106: 12
A107: 356 | B107: 3 | C107: 15 | D107: 23 | E107: 5 | F107: 12
A108: 357 | B108: 3 | C108: 15 | D108: 23 | E108: 5 | F108: 28
A109: 358 | B109: 3 | C109: 3 | D109: 17 | E109: 1 | F109: 23
A110: 359 | B110: 3 | C110: 3 | D110: 17 | E110: 1 | F110: 55
A111: 364 | B111: 3 | C111: 9 | D111: 18 | E111: 6 | F111: 22
A112: 365 | B112: 3 | C112: 9 | D112: 27 | E112: 14 | F112: 37
A113: 376 | B113: 3 | C113: 3 | D113: 31 | E113: 4 | F113: 90
A114: 377 | B114: 3 | C114: 15 | D114: 45 | E114: 13 | F114: 99
A115: 380 | B115: 3 | C115: 19 | D115: 36 | E115: 4 | F115: 84
A116: 382 | B116: 3 | C116: 9 | D116: 1 | E116: 2 | F116: 23
A117: 383 | B117: 3 | C117: 9 | D117: 1 | E117: 2 | F117: 58
A118: 405 | B118: 3 | C118: 19 | D118: 45 | E118: 10 | F118: 14
A119: 406 | B119: 3 | C119: 19 | D119: 45 | E119: 10 | F119: 95
A120: 407 | B120: 3 | C120: 19 | D120: 45 | E120: 10 | F120: 34
A121: 409 | B121: 3 | C121: 19 | D121: 40 | E121: 12 | F121: 45
A122: 410 | B122: 3 | C122: 19 | D122: 40 | E122: 12 | F122: 36
A123: 414 | B123: 3 | C123: 14 | D123: 22 | E123: 14 | F123: 49
A124: 421 | B124: 3 | C124: 19 | D124: 21 | E124: 13 | F124: 14
A125: 422 | B125: 3 | C125: 19 | D125: 21 | E125: 13 | F125: 63
A126: 423 | B126: 3 | C126: 3 | D126: 14 | E126: 10 | F126: 89
A127: 424 | B127: 3 | C127: 3 | D127: 14 | E127: 10 | F127: 90
A128: 425 | B128: 3 | C128: 14 | D128: 42 | E128: 9 | F128: 77
A129: 433 | B129: 3 | C129: 9 | D129: 32 | E129: 3 | F129: 29
A130: 434 | B130: 3 | C130: 9 | D130: 32 | E130: 3 | F130: 89
A131: 439 | B131: 3 | C131: 15 | D131: 10 | E131: 7 | F131: 42
A132: 440 | B132: 3 | C132: 15 | D132: 10 | E132: 7 | F132: 88
A133: 441 | B133: 3 | C133: 15 | D133: 10 | E133: 7 | F133: 29
A134: 446 | B134: 3 | C134: 19 | D134: 11 | E134: 2 | F134: 27
A135: 457 | B135: 3 | C135: 19 | D135: 4 | E135: 8 | F135: 21
A136: 458 | B136: 3 | C136: 19 | D136: 4 | E136: 8 | F136: 40
A137: 460 | B137: 3 | C137: 14 | D137: 16 | E137: 8 | F137: 86
A138: 461 | B138: 3 | C138: 14 | D138: 16 | E138: 8 | F138: 59
A139: 483 | B139: 3 | C139: 3 | D139: 38 | E139: 15 | F139: 20
A140: 484 | B140: 3 | C140: 14 | D140: 28 | E140: 14 | F140: 48
A141: 485 | B141: 3 | C141: 14 | D141: 28 | E141: 14 | F141: 53
A142: 489 | B142: 3 | C142: 19 | D142: 17 | E142: 11 | F142: 64
A143: 490 | B143: 3 | C143: 14 | D143: 12 | E143: 2 | F143: 19
A144: 491 | B144: 3 | C144: 14 | D144: 12 | E144: 2 | F144: 68
A145: 494 | B145: 3 | C145: 9 | D145: 24 | E145: 3 | F145: 74
A146: 499 | B146: 3 | C146: 15 | D146: 23 | E146: 5 | F146: 61
A147: 500 | B147: 3 | C147: 15 | D147: 23 | E147: 5 | F147: 33
A148: 4 | B148: 4 | C148: 8 | D148: 39 | E148: 15 | F148: 15
A149: 5 | B149: 4 | C149: 8 | D149: 39 | E149: 15 | F149: 33
A150: 6 | B150: 4 | C150: 8 | D150: 39 | E150: 15 | F150: 66
A151: 9 | B151: 4 | C151: 8 | D151: 6 | E151: 13 | F151: 93
A152: 19 | B152: 4 | C152: 10 | D152: 3 | E152: 8 | F152: 63
A153: 20 | B153: 4 | C153: 1 | D153: 38 | E153: 8 | F153: 51
A154: 23 | B154: 4 | C154: 8 | D154: 45 | E154: 1 | F154: 16
A155: 24 | B155: 4 | C155: 8 | D155: 45 | E155: 1 | F155: 24
A156: 25 | B156: 4 | C156: 8 | D156: 45 | E156: 1 | F156: 72
A157: 38 | B157: 4 | C157: 1 | D157: 40 | E157: 2 | F157: 24
A158: 39 | B158: 4 | C158: 1 | D158: 40 | E158: 2 | F158: 28
A159: 40 | B159: 4 | C159: 11 | D159: 27 | E159: 15 | F159: 24
A160: 41 | B160: 4 | C160: 11 | D160: 27 | E160: 15 | F160: 22
A161: 45 | B161: 4 | C161: 10 | D161: 25 | E161: 10 | F161: 37
A162: 46 | B162: 4 | C162: 11 | D162: 46 | E162: 7 | F162: 57
A163: 48 | B163: 4 | C163: 1 | D163: 20 | E163: 6 | F163: 14
A164: 49 | B164: 4 | C164: 1 | D164: 20 | E164: 6 | F164: 53
A165: 61 | B165: 4 | C165: 1 | D165: 38 | E165: 14 | F165: 85
A166: 62 | B166: 4 | C166: 1 | D166: 38 | E166: 14 | F166: 55
A167: 63 | B167: 4 | C167: 1 | D167: 38 | E167: 14 | F167: 83
A168: 64 | B168: 4 | C168: 1 | D168: 37 | E168: 10 | F168: 77
A169: 65 | B169: 4 | C169: 1 | D169: 37 | E169: 10 | F169: 69
A170: 66 | B170: 4 | C170: 1 | D170: 37 | E170: 10 | F170: 86
A171: 67 | B171: 4 | C171: 1 | D171: 37 | E171: 10 | F171: 90
A172: 68 | B172: 4 | C172: 1 | D172: 37 | E172: 10 | F172: 13
A173: 69 | B173: 4 | C173: 11 | D173: 13 | E173: 10 | F173: 21
A174: 70 | B174: 4 | C174: 11 | D174: 13 | E174: 10 | F174: 20
A175: 71 | B175: 4 | C175: 11 | D175: 13 | E175: 10 | F175: 57
A176: 74 | B176: 4 | C176: 11 | D176: 19 | E176: 10 | F176: 88
A177: 80 | B177: 4 | C177: 11 | D177: 17 | E177: 1 | F177: 58
A178: 81 | B178: 4 | C178: 11 | D178: 17 | E178: 1 | F178: 42
A179: 82 | B179: 4 | C179: 11 | D179: 17 | E179: 1 | F179: 90
A180: 87 | B180: 4 | C180: 11 | D180: 5 | E180: 11 | F180: 98
A181: 88 | B181: 4 | C181: 11 | D181: 5 | E181: 11 | F181: 19
A182: 89 | B182: 4 | C182: 11 | D182: 5 | E182: 11 | F182: 59
A183: 106 | B183: 4 | C183: 10 | D183: 13 | E183: 3 | F183: 63
A184: 107 | B184: 4 | C184: 10 | D184: 13 | E184: 3 | F184: 46
A185: 108 | B185: 4 | C185: 10 | D185: 13 | E185: 3 | F185: 23
A186: 112 | B186: 4 | C186: 8 | D186: 16 | E186: 15 | F186: 47
A187: 131 | B187: 4 | C187: 11 | D187: 45 | E187: 13 | F187: 76
A188: 146 | B188: 4 | C188: 11 | D188: 23 | E188: 15 | F188: 60
A189: 147 | B189: 4 | C189: 11 | D189: 23 | E189: 15 | F189: 79
A190: 151 | B190: 4 | C190: 8 | D190: 9 | E190: 7 | F190: 60
A191: 152 | B191: 4 | C191: 8 | D191: 9 | E191: 7 | F191: 100
A192: 153 | B192: 4 | C192: 8 | D192: 9 | E192: 7 | F192: 93
A193: 156 | B193: 4 | C193: 11 | D193: 16 | E193: 3 | F193: 94
A194: 157 | B194: 4 | C194: 11 | D194: 16 | E194: 3 | F194: 36
A195: 158 | B195: 4 | C195: 11 | D195: 16 | E195: 3 | F195: 33
A196: 159 | B196: 4 | C196: 11 | D196: 7 | E196: 15 | F196: 10
A197: 160 | B197: 4 | C197: 11 | D197: 7 | E197: 15 | F197: 66
A198: 161 | B198: 4 | C198: 11 | D198: 7 | E198: 15 | F198: 79
A199: 190 | B199: 4 | C199: 1 | D199: 35 | E199: 13 | F199: 72
A200: 191 | B200: 4 | C200: 1 | D200: 35 | E200: 13 | F200: 43
... 301 more rows

Sheet Tabelle1
A1: PNr | B1: Produkt | C1: Preis | D1: RNr | E1: Region | F1: Anzahl | H1: Region | I1: Produkt | J1: Preis | K1: =H2 -> West | L1: =H3 -> Nord | M1: =H4 -> Süd | N1: =H5 -> Ost | O1: Gesamt | P1: Umsatz
A2: =Verkaufsliste[Produkt] -> 6 | B2: =_xlfn.XLOOKUP(_xlfn.ANCHORARRAY(A2),Produkte[PNr],Produkte[Produkt]) -> Kettenglied | C2: =_xlfn.XLOOKUP(_xlfn.ANCHORARRAY(A2),Produkte[PNr],Produkte[Preis]) -> 2.99 | D2: =Verkaufsliste[Region] -> 3 | E2: =_xlfn.XLOOKUP(_xlfn.ANCHORARRAY(D2),Regionen[RNr],Regionen[Region]) -> West | F2: =Verkaufsliste[Anzahl] -> 88 | H2: =_xlfn.UNIQUE(_xlfn.ANCHORARRAY(E2)) -> West | I2: =_xlfn.UNIQUE(_xlfn.ANCHORARRAY(B2)) -> Kettenglied | J2: =_xlfn.XLOOKUP(I2,Produkt,Preis) -> 2.99 | K2: =SUMIFS(Anzahl,Produkt,$I2,Region,$H$2) -> 152 | L2: =SUMIFS(Anzahl,Produkt,$I2,Region,$H$3) -> 170 | M2: =SUMIFS(Anzahl,Produkt,$I2,Region,$H$4) -> 189 | N2: =SUMIFS(Anzahl,Produkt,$I2,Region,$H$5) -> 287 | O2: =SUM(K2:N2) -> 798 | P2: =J2*O2 -> 2386.02
A3: 6 | B3: Kettenglied | C3: 2.99 | D3: 3 | E3: West | F3: 25 | H3: Nord | I3: Metallschraube | J3: =_xlfn.XLOOKUP(I3,Produkt,Preis) -> 5.58 | K3: 1031 | L3: 414 | M3: 159 | N3: 0 | O3: =SUM(K3:N3) -> 1604 | P3: =J3*O3 -> 8950.32
A4: 6 | B4: Kettenglied | C4: 2.99 | D4: 3 | E4: West | F4: 17 | H4: Süd | I4: Zahnrad | J4: =_xlfn.XLOOKUP(I4,Produkt,Preis) -> 1.09 | K4: 835 | L4: 541 | M4: 592 | N4: 0 | O4: 1968 | P4: 2145.12
A5: 8 | B5: Metallschraube | C5: 5.58 | D5: 3 | E5: West | F5: 14 | H5: Ost | I5: Gleitlager | J5: =_xlfn.XLOOKUP(I5,Produkt,Preis) -> 5.18 | K5: 665 | L5: 180 | M5: 250 | N5: 246 | O5: 1341 | P5: 6946.38
A6: 8 | B6: Metallschraube | C6: 5.58 | D6: 3 | E6: West | F6: 82 | I6: Wälzlager | J6: =_xlfn.XLOOKUP(I6,Produkt,Preis) -> 7.33 | K6: 584 | L6: 917 | M6: 0 | N6: 661 | O6: 2162 | P6: 15847.46
A7: 8 | B7: Metallschraube | C7: 5.58 | D7: 3 | E7: West | F7: 15 | I7: Druckfeder | J7: =_xlfn.XLOOKUP(I7,Produkt,Preis) -> 12.03 | K7: 791 | L7: 772 | M7: 404 | N7: 0 | O7: 1967 | P7: 23663.01
A8: 14 | B8: Zahnrad | C8: 1.09 | D8: 3 | E8: West | F8: 72 | I8: Stirnrad | J8: =_xlfn.XLOOKUP(I8,Produkt,Preis) -> 10.39 | K8: 980 | L8: 1486 | M8: 0 | N8: 440 | O8: 2906 | P8: 30193.34
A9: 14 | B9: Zahnrad | C9: 1.09 | D9: 3 | E9: West | F9: 93 | I9: Dichtung | J9: =_xlfn.XLOOKUP(I9,Produkt,Preis) -> 10.73 | K9: 495 | L9: 472 | M9: 237 | N9: 166 | O9: 1370 | P9: 14700.1
A10: 14 | B10: Zahnrad | C10: 1.09 | D10: 3 | E10: West | F10: 29 | I10: Gelenkbolzen | J10: =_xlfn.XLOOKUP(I10,Produkt,Preis) -> 7.36 | K10: 816 | L10: 443 | M10: 728 | N10: 135 | O10: 2122 | P10: 15617.92
A11: 4 | B11: Gleitlager | C11: 5.18 | D11: 3 | E11: West | F11: 89 | I11: Niete | J11: =_xlfn.XLOOKUP(I11,Produkt,Preis) -> 1.53 | K11: 162 | L11: 0 | M11: 423 | N11: 199 | O11: 784 | P11: 1199.52
A12: 4 | B12: Gleitlager | C12: 5.18 | D12: 3 | E12: West | F12: 11 | I12: Kupplung | J12: =_xlfn.XLOOKUP(I12,Produkt,Preis) -> 11.51 | K12: 323 | L12: 853 | M12: 1557 | N12: 812 | O12: 3545 | P12: 40802.95
A13: 4 | B13: Gleitlager | C13: 5.18 | D13: 3 | E13: West | F13: 19 | I13: Vierkant | J13: =_xlfn.XLOOKUP(I13,Produkt,Preis) -> 0.54 | K13: 343 | L13: 0 | M13: 236 | N13: 0 | O13: 579 | P13: 312.66
A14: 13 | B14: Wälzlager | C14: 7.33 | D14: 3 | E14: West | F14: 100 | I14: Zugfeder | J14: =_xlfn.XLOOKUP(I14,Produkt,Preis) -> 3.25 | K14: 300 | L14: 1141 | M14: 954 | N14: 604 | O14: 2999 | P14: 9746.75
A15: 13 | B15: Wälzlager | C15: 7.33 | D15: 3 | E15: West | F15: 56 | I15: Tellerfeder | J15: =_xlfn.XLOOKUP(I15,Produkt,Preis) -> 4.22 | K15: 309 | L15: 335 | M15: 813 | N15: 0 | O15: 1457 | P15: 6148.54
A16: 4 | B16: Gleitlager | C16: 5.18 | D16: 3 | E16: West | F16: 70 | I16: Kegelrad | J16: =_xlfn.XLOOKUP(I16,Produkt,Preis) -> 10.04 | K16: 208 | L16: 0 | M16: 974 | N16: 288 | O16: 1470 | P16: 14758.8
A17: 4 | B17: Gleitlager | C17: 5.18 | D17: 3 | E17: West | F17: 13 | P17: =SUM(P2:P16) -> 193418.89
A18: 2 | B18: Druckfeder | C18: 12.03 | D18: 3 | E18: West | F18: 94
A19: 4 | B19: Gleitlager | C19: 5.18 | D19: 3 | E19: West | F19: 53
A20: 10 | B20: Stirnrad | C20: 10.39 | D20: 3 | E20: West | F20: 83
A21: 10 | B21: Stirnrad | C21: 10.39 | D21: 3 | E21: West | F21: 28
A22: 10 | B22: Stirnrad | C22: 10.39 | D22: 3 | E22: West | F22: 95
A23: 8 | B23: Metallschraube | C23: 5.58 | D23: 3 | E23: West | F23: 82
A24: 14 | B24: Zahnrad | C24: 1.09 | D24: 3 | E24: West | F24: 96
A25: 14 | B25: Zahnrad | C25: 1.09 | D25: 3 | E25: West | F25: 45
A26: 1 | B26: Dichtung | C26: 10.73 | D26: 3 | E26: West | F26: 88
A27: 1 | B27: Dichtung | C27: 10.73 | D27: 3 | E27: West | F27: 62
A28: 8 | B28: Metallschraube | C28: 5.58 | D28: 3 | E28: West | F28: 53
A29: 8 | B29: Metallschraube | C29: 5.58 | D29: 3 | E29: West | F29: 30
A30: 8 | B30: Metallschraube | C30: 5.58 | D30: 3 | E30: West | F30: 23
A31: 13 | B31: Wälzlager | C31: 7.33 | D31: 3 | E31: West | F31: 61
A32: 10 | B32: Stirnrad | C32: 10.39 | D32: 3 | E32: West | F32: 89
A33: 10 | B33: Stirnrad | C33: 10.39 | D33: 3 | E33: West | F33: 100
A34: 3 | B34: Gelenkbolzen | C34: 7.36 | D34: 3 | E34: West | F34: 77
A35: 3 | B35: Gelenkbolzen | C35: 7.36 | D35: 3 | E35: West | F35: 25
A36: 3 | B36: Gelenkbolzen | C36: 7.36 | D36: 3 | E36: West | F36: 22
A37: 3 | B37: Gelenkbolzen | C37: 7.36 | D37: 3 | E37: West | F37: 94
A38: 9 | B38: Niete | C38: 1.53 | D38: 3 | E38: West | F38: 17
A39: 3 | B39: Gelenkbolzen | C39: 7.36 | D39: 3 | E39: West | F39: 55
A40: 3 | B40: Gelenkbolzen | C40: 7.36 | D40: 3 | E40: West | F40: 35
A41: 7 | B41: Kupplung | C41: 11.51 | D41: 3 | E41: West | F41: 65
A42: 2 | B42: Druckfeder | C42: 12.03 | D42: 3 | E42: West | F42: 43
A43: 2 | B43: Druckfeder | C43: 12.03 | D43: 3 | E43: West | F43: 90
A44: 12 | B44: Vierkant | C44: 0.54 | D44: 3 | E44: West | F44: 12
A45: 8 | B45: Metallschraube | C45: 5.58 | D45: 3 | E45: West | F45: 32
A46: 8 | B46: Metallschraube | C46: 5.58 | D46: 3 | E46: West | F46: 65
A47: 8 | B47: Metallschraube | C47: 5.58 | D47: 3 | E47: West | F47: 53
A48: 8 | B48: Metallschraube | C48: 5.58 | D48: 3 | E48: West | F48: 89
A49: 8 | B49: Metallschraube | C49: 5.58 | D49: 3 | E49: West | F49: 71
A50: 15 | B50: Zugfeder | C50: 3.25 | D50: 3 | E50: West | F50: 97
A51: 15 | B51: Zugfeder | C51: 3.25 | D51: 3 | E51: West | F51: 44
A52: 14 | B52: Zahnrad | C52: 1.09 | D52: 3 | E52: West | F52: 64
A53: 11 | B53: Tellerfeder | C53: 4.22 | D53: 3 | E53: West | F53: 82
A54: 11 | B54: Tellerfeder | C54: 4.22 | D54: 3 | E54: West | F54: 17
A55: 2 | B55: Druckfeder | C55: 12.03 | D55: 3 | E55: West | F55: 59
A56: 3 | B56: Gelenkbolzen | C56: 7.36 | D56: 3 | E56: West | F56: 65
A57: 3 | B57: Gelenkbolzen | C57: 7.36 | D57: 3 | E57: West | F57: 75
A58: 5 | B58: Kegelrad | C58: 10.04 | D58: 3 | E58: West | F58: 48
A59: 5 | B59: Kegelrad | C59: 10.04 | D59: 3 | E59: West | F59: 26
A60: 1 | B60: Dichtung | C60: 10.73 | D60: 3 | E60: West | F60: 42
A61: 1 | B61: Dichtung | C61: 10.73 | D61: 3 | E61: West | F61: 30
A62: 8 | B62: Metallschraube | C62: 5.58 | D62: 3 | E62: West | F62: 15
A63: 13 | B63: Wälzlager | C63: 7.33 | D63: 3 | E63: West | F63: 93
A64: 4 | B64: Gleitlager | C64: 5.18 | D64: 3 | E64: West | F64: 55
A65: 2 | B65: Druckfeder | C65: 12.03 | D65: 3 | E65: West | F65: 74
A66: 4 | B66: Gleitlager | C66: 5.18 | D66: 3 | E66: West | F66: 43
A67: 4 | B67: Gleitlager | C67: 5.18 | D67: 3 | E67: West | F67: 69
A68: 4 | B68: Gleitlager | C68: 5.18 | D68: 3 | E68: West | F68: 69
A69: 10 | B69: Stirnrad | C69: 10.39 | D69: 3 | E69: West | F69: 36
A70: 10 | B70: Stirnrad | C70: 10.39 | D70: 3 | E70: West | F70: 58
A71: 10 | B71: Stirnrad | C71: 10.39 | D71: 3 | E71: West | F71: 69
A72: 12 | B72: Vierkant | C72: 0.54 | D72: 3 | E72: West | F72: 38
A73: 12 | B73: Vierkant | C73: 0.54 | D73: 3 | E73: West | F73: 42
A74: 14 | B74: Zahnrad | C74: 1.09 | D74: 3 | E74: West | F74: 21
A75: 14 | B75: Zahnrad | C75: 1.09 | D75: 3 | E75: West | F75: 91
A76: 1 | B76: Dichtung | C76: 10.73 | D76: 3 | E76: West | F76: 67
A77: 1 | B77: Dichtung | C77: 10.73 | D77: 3 | E77: West | F77: 63
A78: 1 | B78: Dichtung | C78: 10.73 | D78: 3 | E78: West | F78: 65
A79: 8 | B79: Metallschraube | C79: 5.58 | D79: 3 | E79: West | F79: 91
A80: 8 | B80: Metallschraube | C80: 5.58 | D80: 3 | E80: West | F80: 40
A81: 13 | B81: Wälzlager | C81: 7.33 | D81: 3 | E81: West | F81: 43
A82: 13 | B82: Wälzlager | C82: 7.33 | D82: 3 | E82: West | F82: 55
A83: 10 | B83: Stirnrad | C83: 10.39 | D83: 3 | E83: West | F83: 100
A84: 3 | B84: Gelenkbolzen | C84: 7.36 | D84: 3 | E84: West | F84: 26
A85: 9 | B85: Niete | C85: 1.53 | D85: 3 | E85: West | F85: 68
A86: 7 | B86: Kupplung | C86: 11.51 | D86: 3 | E86: West | F86: 99
A87: 2 | B87: Druckfeder | C87: 12.03 | D87: 3 | E87: West | F87: 44
A88: 2 | B88: Druckfeder | C88: 12.03 | D88: 3 | E88: West | F88: 41
A89: 12 | B89: Vierkant | C89: 0.54 | D89: 3 | E89: West | F89: 61
A90: 12 | B90: Vierkant | C90: 0.54 | D90: 3 | E90: West | F90: 66
A91: 12 | B91: Vierkant | C91: 0.54 | D91: 3 | E91: West | F91: 28
A92: 12 | B92: Vierkant | C92: 0.54 | D92: 3 | E92: West | F92: 15
A93: 8 | B93: Metallschraube | C93: 5.58 | D93: 3 | E93: West | F93: 70
A94: 15 | B94: Zugfeder | C94: 3.25 | D94: 3 | E94: West | F94: 92
A95: 15 | B95: Zugfeder | C95: 3.25 | D95: 3 | E95: West | F95: 12
A96: 15 | B96: Zugfeder | C96: 3.25 | D96: 3 | E96: West | F96: 35
A97: 14 | B97: Zahnrad | C97: 1.09 | D97: 3 | E97: West | F97: 89
A98: 14 | B98: Zahnrad | C98: 1.09 | D98: 3 | E98: West | F98: 48
A99: 11 | B99: Tellerfeder | C99: 4.22 | D99: 3 | E99: West | F99: 79
A100: 11 | B100: Tellerfeder | C100: 4.22 | D100: 3 | E100: West | F100: 67
A101: 2 | B101: Druckfeder | C101: 12.03 | D101: 3 | E101: West | F101: 97
A102: 2 | B102: Druckfeder | C102: 12.03 | D102: 3 | E102: West | F102: 54
A103: 3 | B103: Gelenkbolzen | C103: 7.36 | D103: 3 | E103: West | F103: 25
A104: 3 | B104: Gelenkbolzen | C104: 7.36 | D104: 3 | E104: West | F104: 56
A105: 3 | B105: Gelenkbolzen | C105: 7.36 | D105: 3 | E105: West | F105: 57
A106: 3 | B106: Gelenkbolzen | C106: 7.36 | D106: 3 | E106: West | F106: 12
A107: 5 | B107: Kegelrad | C107: 10.04 | D107: 3 | E107: West | F107: 12
A108: 5 | B108: Kegelrad | C108: 10.04 | D108: 3 | E108: West | F108: 28
A109: 1 | B109: Dichtung | C109: 10.73 | D109: 3 | E109: West | F109: 23
A110: 1 | B110: Dichtung | C110: 10.73 | D110: 3 | E110: West | F110: 55
A111: 6 | B111: Kettenglied | C111: 2.99 | D111: 3 | E111: West | F111: 22
A112: 14 | B112: Zahnrad | C112: 1.09 | D112: 3 | E112: West | F112: 37
A113: 4 | B113: Gleitlager | C113: 5.18 | D113: 3 | E113: West | F113: 90
A114: 13 | B114: Wälzlager | C114: 7.33 | D114: 3 | E114: West | F114: 99
A115: 4 | B115: Gleitlager | C115: 5.18 | D115: 3 | E115: West | F115: 84
A116: 2 | B116: Druckfeder | C116: 12.03 | D116: 3 | E116: West | F116: 23
A117: 2 | B117: Druckfeder | C117: 12.03 | D117: 3 | E117: West | F117: 58
A118: 10 | B118: Stirnrad | C118: 10.39 | D118: 3 | E118: West | F118: 14
A119: 10 | B119: Stirnrad | C119: 10.39 | D119: 3 | E119: West | F119: 95
A120: 10 | B120: Stirnrad | C120: 10.39 | D120: 3 | E120: West | F120: 34
A121: 12 | B121: Vierkant | C121: 0.54 | D121: 3 | E121: West | F121: 45
A122: 12 | B122: Vierkant | C122: 0.54 | D122: 3 | E122: West | F122: 36
A123: 14 | B123: Zahnrad | C123: 1.09 | D123: 3 | E123: West | F123: 49
A124: 13 | B124: Wälzlager | C124: 7.33 | D124: 3 | E124: West | F124: 14
A125: 13 | B125: Wälzlager | C125: 7.33 | D125: 3 | E125: West | F125: 63
A126: 10 | B126: Stirnrad | C126: 10.39 | D126: 3 | E126: West | F126: 89
A127: 10 | B127: Stirnrad | C127: 10.39 | D127: 3 | E127: West | F127: 90
A128: 9 | B128: Niete | C128: 1.53 | D128: 3 | E128: West | F128: 77
A129: 3 | B129: Gelenkbolzen | C129: 7.36 | D129: 3 | E129: West | F129: 29
A130: 3 | B130: Gelenkbolzen | C130: 7.36 | D130: 3 | E130: West | F130: 89
A131: 7 | B131: Kupplung | C131: 11.51 | D131: 3 | E131: West | F131: 42
A132: 7 | B132: Kupplung | C132: 11.51 | D132: 3 | E132: West | F132: 88
A133: 7 | B133: Kupplung | C133: 11.51 | D133: 3 | E133: West | F133: 29
A134: 2 | B134: Druckfeder | C134: 12.03 | D134: 3 | E134: West | F134: 27
A135: 8 | B135: Metallschraube | C135: 5.58 | D135: 3 | E135: West | F135: 21
A136: 8 | B136: Metallschraube | C136: 5.58 | D136: 3 | E136: West | F136: 40
A137: 8 | B137: Metallschraube | C137: 5.58 | D137: 3 | E137: West | F137: 86
A138: 8 | B138: Metallschraube | C138: 5.58 | D138: 3 | E138: West | F138: 59
A139: 15 | B139: Zugfeder | C139: 3.25 | D139: 3 | E139: West | F139: 20
A140: 14 | B140: Zahnrad | C140: 1.09 | D140: 3 | E140: West | F140: 48
A141: 14 | B141: Zahnrad | C141: 1.09 | D141: 3 | E141: West | F141: 53
A142: 11 | B142: Tellerfeder | C142: 4.22 | D142: 3 | E142: West | F142: 64
A143: 2 | B143: Druckfeder | C143: 12.03 | D143: 3 | E143: West | F143: 19
A144: 2 | B144: Druckfeder | C144: 12.03 | D144: 3 | E144: West | F144: 68
A145: 3 | B145: Gelenkbolzen | C145: 7.36 | D145: 3 | E145: West | F145: 74
A146: 5 | B146: Kegelrad | C146: 10.04 | D146: 3 | E146: West | F146: 61
A147: 5 | B147: Kegelrad | C147: 10.04 | D147: 3 | E147: West | F147: 33
A148: 15 | B148: Zugfeder | C148: 3.25 | D148: 4 | E148: Nord | F148: 15
A149: 15 | B149: Zugfeder | C149: 3.25 | D149: 4 | E149: Nord | F149: 33
A150: 15 | B150: Zugfeder | C150: 3.25 | D150: 4 | E150: Nord | F150: 66
A151: 13 | B151: Wälzlager | C151: 7.33 | D151: 4 | E151: Nord | F151: 93
A152: 8 | B152: Metallschraube | C152: 5.58 | D152: 4 | E152: Nord | F152: 63
A153: 8 | B153: Metallschraube | C153: 5.58 | D153: 4 | E153: Nord | F153: 51
A154: 1 | B154: Dichtung | C154: 10.73 | D154: 4 | E154: Nord | F154: 16
A155: 1 | B155: Dichtung | C155: 10.73 | D155: 4 | E155: Nord | F155: 24
A156: 1 | B156: Dichtung | C156: 10.73 | D156: 4 | E156: Nord | F156: 72
A157: 2 | B157: Druckfeder | C157: 12.03 | D157: 4 | E157: Nord | F157: 24
A158: 2 | B158: Druckfeder | C158: 12.03 | D158: 4 | E158: Nord | F158: 28
A159: 15 | B159: Zugfeder | C159: 3.25 | D159: 4 | E159: Nord | F159: 24
A160: 15 | B160: Zugfeder | C160: 3.25 | D160: 4 | E160: Nord | F160: 22
A161: 10 | B161: Stirnrad | C161: 10.39 | D161: 4 | E161: Nord | F161: 37
A162: 7 | B162: Kupplung | C162: 11.51 | D162: 4 | E162: Nord | F162: 57
A163: 6 | B163: Kettenglied | C163: 2.99 | D163: 4 | E163: Nord | F163: 14
A164: 6 | B164: Kettenglied | C164: 2.99 | D164: 4 | E164: Nord | F164: 53
A165: 14 | B165: Zahnrad | C165: 1.09 | D165: 4 | E165: Nord | F165: 85
A166: 14 | B166: Zahnrad | C166: 1.09 | D166: 4 | E166: Nord | F166: 55
A167: 14 | B167: Zahnrad | C167: 1.09 | D167: 4 | E167: Nord | F167: 83
A168: 10 | B168: Stirnrad | C168: 10.39 | D168: 4 | E168: Nord | F168: 77
A169: 10 | B169: Stirnrad | C169: 10.39 | D169: 4 | E169: Nord | F169: 69
A170: 10 | B170: Stirnrad | C170: 10.39 | D170: 4 | E170: Nord | F170: 86
A171: 10 | B171: Stirnrad | C171: 10.39 | D171: 4 | E171: Nord | F171: 90
A172: 10 | B172: Stirnrad | C172: 10.39 | D172: 4 | E172: Nord | F172: 13
A173: 10 | B173: Stirnrad | C173: 10.39 | D173: 4 | E173: Nord | F173: 21
A174: 10 | B174: Stirnrad | C174: 10.39 | D174: 4 | E174: Nord | F174: 20
A175: 10 | B175: Stirnrad | C175: 10.39 | D175: 4 | E175: Nord | F175: 57
A176: 10 | B176: Stirnrad | C176: 10.39 | D176: 4 | E176: Nord | F176: 88
A177: 1 | B177: Dichtung | C177: 10.73 | D177: 4 | E177: Nord | F177: 58
A178: 1 | B178: Dichtung | C178: 10.73 | D178: 4 | E178: Nord | F178: 42
A179: 1 | B179: Dichtung | C179: 10.73 | D179: 4 | E179: Nord | F179: 90
A180: 11 | B180: Tellerfeder | C180: 4.22 | D180: 4 | E180: Nord | F180: 98
A181: 11 | B181: Tellerfeder | C181: 4.22 | D181: 4 | E181: Nord | F181: 19
A182: 11 | B182: Tellerfeder | C182: 4.22 | D182: 4 | E182: Nord | F182: 59
A183: 3 | B183: Gelenkbolzen | C183: 7.36 | D183: 4 | E183: Nord | F183: 63
A184: 3 | B184: Gelenkbolzen | C184: 7.36 | D184: 4 | E184: Nord | F184: 46
A185: 3 | B185: Gelenkbolzen | C185: 7.36 | D185: 4 | E185: Nord | F185: 23
A186: 15 | B186: Zugfeder | C186: 3.25 | D186: 4 | E186: Nord | F186: 47
A187: 13 | B187: Wälzlager | C187: 7.33 | D187: 4 | E187: Nord | F187: 76
A188: 15 | B188: Zugfeder | C188: 3.25 | D188: 4 | E188: Nord | F188: 60
A189: 15 | B189: Zugfeder | C189: 3.25 | D189: 4 | E189: Nord | F189: 79
A190: 7 | B190: Kupplung | C190: 11.51 | D190: 4 | E190: Nord | F190: 60
A191: 7 | B191: Kupplung | C191: 11.51 | D191: 4 | E191: Nord | F191: 100
A192: 7 | B192: Kupplung | C192: 11.51 | D192: 4 | E192: Nord | F192: 93
A193: 3 | B193: Gelenkbolzen | C193: 7.36 | D193: 4 | E193: Nord | F193: 94
A194: 3 | B194: Gelenkbolzen | C194: 7.36 | D194: 4 | E194: Nord | F194: 36
A195: 3 | B195: Gelenkbolzen | C195: 7.36 | D195: 4 | E195: Nord | F195: 33
A196: 15 | B196: Zugfeder | C196: 3.25 | D196: 4 | E196: Nord | F196: 10
A197: 15 | B197: Zugfeder | C197: 3.25 | D197: 4 | E197: Nord | F197: 66
A198: 15 | B198: Zugfeder | C198: 3.25 | D198: 4 | E198: Nord | F198: 79
A199: 13 | B199: Wälzlager | C199: 7.33 | D199: 4 | E199: Nord | F199: 72
A200: 13 | B200: Wälzlager | C200: 7.33 | D200: 4 | E200: Nord | F200: 43
... 301 more rows
